[Event "Titled Tuesday Blitz March 14 Late 2023"]
[White "Piesik, Piotr"]
[Black "Becham, Khalid"]
[WhiteFideId "1136194"]
[BlackFideId "9000275"]
[WhiteElo "2311"]
[BlackElo "2081"]
[Result "1-0"]
[Round "04"]
[TimeControl "180+2"]
[Date "2023.03.14"]
[WhiteClock "0:02:15"]
[BlackClock "0:02:01"]

1. Nf3 {[%clk 0:02:53]}  f5 {[%clk 0:02:58]} 2. d3 {[%clk 0:02:53]}  Nc6 {[%clk 0:02:57]} 3. d4 {[%clk 0:02:51]}  e6 {[%clk 0:02:56]} 4. Nbd2 {[%clk 0:02:48]}  Nf6 {[%clk 0:02:55]} 5. c3 {[%clk 0:02:48]}  d5 {[%clk 0:02:54]} 6. Nb3 {[%clk 0:02:45]}  Bd6 {[%clk 0:02:52]} 7. Bg5 {[%clk 0:02:45]}  O-O {[%clk 0:02:51]} 8. e3 {[%clk 0:02:44]}  Bd7 {[%clk 0:02:49]} 9. Nc1 {[%clk 0:02:43]}  Be8 {[%clk 0:02:49]} 10. Nd3 {[%clk 0:02:41]}  Bh5 {[%clk 0:02:49]} 11. Be2 {[%clk 0:02:41]}  Bxf3 {[%clk 0:02:49]} 12. Bxf3 {[%clk 0:02:41]}  h6 {[%clk 0:02:48]} 13. Bf4 {[%clk 0:02:40]}  Ne7 {[%clk 0:02:40]} 14. h3 {[%clk 0:02:34]}  Qd7 {[%clk 0:02:35]} 15. g4 {[%clk 0:02:31]}  Kh8 {[%clk 0:02:32]} 16. Qe2 {[%clk 0:02:27]}  Ne4 {[%clk 0:02:27]} 17. Ne5 {[%clk 0:02:19]}  c5 {[%clk 0:02:10]} 18. gxf5 {[%clk 0:02:19]}  exf5 {[%clk 0:02:01]} 19. Nxd7 {[%clk 0:02:15]} 1-0


[Site "https://www.chess.com"]

[Event "Titled Tuesday Blitz March 14 Late 2023"]
[White "slow_jamz"]
[Black "Costachi, Mihnea"]
[BlackFideId "1217518"]
[WhiteElo "2469"]
[BlackElo "2456"]
[Result "0-1"]
[Round "04"]
[TimeControl "180+2"]
[Date "2023.03.14"]
[WhiteClock "0:00:01"]
[BlackClock "0:00:52"]

1. d4 {[%clk 0:02:55]}  g6 {[%clk 0:03:00]} 2. c4 {[%clk 0:02:55]}  Bg7 {[%clk 0:03:01]} 3. Nc3 {[%clk 0:02:55]}  d6 {[%clk 0:03:01]} 4. e4 {[%clk 0:02:55]}  Nc6 {[%clk 0:03:02]} 5. Nge2 {[%clk 0:02:54]}  e5 {[%clk 0:03:02]} 6. Be3 {[%clk 0:02:55]}  Nf6 {[%clk 0:02:59]} 7. f3 {[%clk 0:02:54]}  O-O {[%clk 0:02:58]} 8. Qd2 {[%clk 0:02:54]}  Re8 {[%clk 0:02:53]} 9. d5 {[%clk 0:02:54]}  Ne7 {[%clk 0:02:47]} 10. g4 {[%clk 0:02:54]}  c6 {[%clk 0:02:46]} 11. Ng3 {[%clk 0:02:52]}  cxd5 {[%clk 0:02:46]} 12. cxd5 {[%clk 0:02:53]}  Rf8 {[%clk 0:02:46]} 13. h4 {[%clk 0:02:52]}  b5 {[%clk 0:02:43]} 14. Bxb5 {[%clk 0:02:52]}  Rb8 {[%clk 0:02:43]} 15. Bxa7 {[%clk 0:02:49]}  Ra8 {[%clk 0:02:37]} 16. Be3 {[%clk 0:02:48]}  Ba6 {[%clk 0:02:34]} 17. Be2 {[%clk 0:02:36]}  Qa5 {[%clk 0:02:33]} 18. h5 {[%clk 0:02:34]}  Rfb8 {[%clk 0:02:33]} 19. Bxa6 {[%clk 0:01:57]}  Rxa6 {[%clk 0:02:32]} 20. hxg6 {[%clk 0:01:41]}  fxg6 {[%clk 0:02:30]} 21. g5 {[%clk 0:01:39]}  Nd7 {[%clk 0:02:28]} 22. Rc1 {[%clk 0:01:31]}  Qb4 {[%clk 0:02:22]} 23. Rc2 {[%clk 0:01:21]}  Nc8 {[%clk 0:02:17]} 24. O-O {[%clk 0:00:48]}  Ncb6 {[%clk 0:02:11]} 25. b3 {[%clk 0:00:36]}  Rba8 {[%clk 0:02:11]} 26. Rfc1 {[%clk 0:00:35]}  Nc5 {[%clk 0:02:10]} 27. Kf2 {[%clk 0:00:31]}  Nbd7 {[%clk 0:02:07]} 28. Ke2 {[%clk 0:00:30]}  Qb7 {[%clk 0:01:59]} 29. Rb1 {[%clk 0:00:25]}  Rb6 {[%clk 0:01:53]} 30. Rcb2 {[%clk 0:00:24]}  Qa6+ {[%clk 0:01:52]} 31. Kd1 {[%clk 0:00:21]}  Rb4 {[%clk 0:01:47]} 32. a3 {[%clk 0:00:19]}  Rb7 {[%clk 0:01:35]} 33. b4 {[%clk 0:00:18]}  Na4 {[%clk 0:01:36]} 34. Rb3 {[%clk 0:00:16]}  Ndb6 {[%clk 0:01:31]} 35. Nxa4 {[%clk 0:00:16]}  Qxa4 {[%clk 0:01:29]} 36. Bxb6 {[%clk 0:00:16]}  Rxb6 {[%clk 0:01:30]} 37. Ke1 {[%clk 0:00:15]}  Qd7 {[%clk 0:01:27]} 38. Rc1 {[%clk 0:00:15]}  Qh3 {[%clk 0:01:25]} 39. Nf1 {[%clk 0:00:14]}  Rf8 {[%clk 0:01:23]} 40. Qe2 {[%clk 0:00:11]}  Qh4+ {[%clk 0:01:21]} 41. Qf2 {[%clk 0:00:10]}  Qxg5 {[%clk 0:01:21]} 42. Rc7 {[%clk 0:00:06]}  Rbb8 {[%clk 0:01:16]} 43. b5 {[%clk 0:00:06]}  Bf6 {[%clk 0:01:14]} 44. Rc6 {[%clk 0:00:05]}  Qh6 {[%clk 0:01:08]} 45. b6 {[%clk 0:00:05]}  Bh4 {[%clk 0:01:08]} 46. Ng3 {[%clk 0:00:04]}  Qf4 {[%clk 0:01:09]} 47. Ke2 {[%clk 0:00:03]}  Bxg3 {[%clk 0:01:09]} 48. Qe3 {[%clk 0:00:04]}  Qh4 {[%clk 0:01:10]} 49. b7 {[%clk 0:00:03]}  Qh2+ {[%clk 0:01:09]} 50. Kd3 {[%clk 0:00:04]}  Qg2 {[%clk 0:01:08]} 51. Kc4 {[%clk 0:00:04]}  Qc2+ {[%clk 0:01:03]} 52. Qc3 {[%clk 0:00:04]}  Qe2+ {[%clk 0:01:03]} 53. Qd3 {[%clk 0:00:05]}  Qf2 {[%clk 0:01:03]} 54. a4 {[%clk 0:00:04]}  Qa7 {[%clk 0:00:55]} 55. Rcb6 {[%clk 0:00:01]}  Bf2 {[%clk 0:00:52]} 0-1


[Site "https://www.chess.com"]

[Event "Titled Tuesday Blitz March 14 Late 2023"]
[White "Romkachess"]
[Black "Mazurkiewicz, Michal"]
[BlackFideId "1124943"]
[WhiteElo "2568"]
[BlackElo "2054"]
[Result "0-1"]
[Round "04"]
[TimeControl "180+2"]
[Date "2023.03.14"]
[WhiteClock "0:00:04"]
[BlackClock "0:00:07"]

1. e4 {[%clk 0:03:00]}  d6 {[%clk 0:02:59]} 2. d4 {[%clk 0:02:58]}  Nf6 {[%clk 0:02:59]} 3. Nc3 {[%clk 0:02:58]}  c6 {[%clk 0:02:59]} 4. f3 {[%clk 0:02:58]}  e5 {[%clk 0:02:59]} 5. Be3 {[%clk 0:02:59]}  Be7 {[%clk 0:02:57]} 6. Qd2 {[%clk 0:02:59]}  O-O {[%clk 0:02:58]} 7. O-O-O {[%clk 0:02:57]}  b5 {[%clk 0:02:56]} 8. g4 {[%clk 0:02:55]}  Qc7 {[%clk 0:02:48]} 9. h4 {[%clk 0:02:53]}  a5 {[%clk 0:02:45]} 10. h5 {[%clk 0:02:52]}  a4 {[%clk 0:02:45]} 11. g5 {[%clk 0:02:49]}  Nfd7 {[%clk 0:02:45]} 12. g6 {[%clk 0:02:44]}  b4 {[%clk 0:02:41]} 13. Nce2 {[%clk 0:02:38]}  Nb6 {[%clk 0:02:37]} 14. Ng3 {[%clk 0:02:33]}  b3 {[%clk 0:02:32]} 15. cxb3 {[%clk 0:02:10]}  axb3 {[%clk 0:02:33]} 16. a3 {[%clk 0:02:11]}  c5 {[%clk 0:02:20]} 17. dxe5 {[%clk 0:02:00]}  dxe5 {[%clk 0:02:20]} 18. Nf5 {[%clk 0:01:32]}  Bxf5 {[%clk 0:02:19]} 19. exf5 {[%clk 0:01:33]}  c4 {[%clk 0:02:09]} 20. Bxb6 {[%clk 0:01:15]}  Qxb6 {[%clk 0:02:08]} 21. h6 {[%clk 0:01:16]}  c3 {[%clk 0:01:07]} 22. gxh7+ {[%clk 0:01:15]}  Kh8 {[%clk 0:01:04]} 23. hxg7+ {[%clk 0:01:16]}  Kxg7 {[%clk 0:01:05]} 24. Qxc3 {[%clk 0:00:38]}  Nc6 {[%clk 0:01:04]} 25. Kb1 {[%clk 0:00:28]}  Nd4 {[%clk 0:01:04]} 26. f4 {[%clk 0:00:26]}  Bf6 {[%clk 0:00:50]} 27. Qg3+ {[%clk 0:00:23]}  Kh8 {[%clk 0:00:47]} 28. fxe5 {[%clk 0:00:24]}  Qc6 {[%clk 0:00:30]} 29. Bd3 {[%clk 0:00:19]}  Qxh1 {[%clk 0:00:21]} 30. exf6 {[%clk 0:00:19]}  Qxh7 {[%clk 0:00:18]} 31. Nf3 {[%clk 0:00:20]}  Rg8 {[%clk 0:00:16]} 32. Ng5 {[%clk 0:00:20]}  Nxf5 {[%clk 0:00:07]} 33. Bxf5 {[%clk 0:00:17]}  Qxf5+ {[%clk 0:00:07]} 34. Ka1 {[%clk 0:00:14]}  Rxg5 {[%clk 0:00:08]} 35. Rh1+ {[%clk 0:00:10]}  Kg8 {[%clk 0:00:08]} 36. Qh4 {[%clk 0:00:05]}  Qxf6 {[%clk 0:00:05]} 37. Qh7+ {[%clk 0:00:04]}  Kf8 {[%clk 0:00:06]} 38. Qh2 {[%clk 0:00:02]}  Rxa3+ {[%clk 0:00:06]} 39. Kb1 {[%clk 0:00:03]}  Ra1+ {[%clk 0:00:06]} 40. Kxa1 {[%clk 0:00:03]}  Qa6+ {[%clk 0:00:06]} 41. Kb1 {[%clk 0:00:03]}  Qd3+ {[%clk 0:00:06]} 42. Kc1 {[%clk 0:00:04]}  Rc5+ {[%clk 0:00:07]} 0-1


[Site "https://www.chess.com"]

[Event "Titled Tuesday Blitz March 14 Late 2023"]
[White "Rasulov, Vugar"]
[Black "DeyanKostov"]
[WhiteFideId "13402390"]
[WhiteElo "2509"]
[BlackElo "2329"]
[Result "1-0"]
[Round "04"]
[TimeControl "180+2"]
[Date "2023.03.14"]
[WhiteClock "0:00:16"]
[BlackClock "0:00:20"]

1. e4 {[%clk 0:03:00]}  c5 {[%clk 0:02:59]} 2. Nf3 {[%clk 0:03:00]}  d6 {[%clk 0:02:59]} 3. Bb5+ {[%clk 0:02:59]}  Nd7 {[%clk 0:02:58]} 4. Ba4 {[%clk 0:02:58]}  Nf6 {[%clk 0:02:59]} 5. O-O {[%clk 0:02:58]}  g6 {[%clk 0:02:59]} 6. Re1 {[%clk 0:02:57]}  Bg7 {[%clk 0:02:59]} 7. c3 {[%clk 0:02:55]}  O-O {[%clk 0:02:58]} 8. h3 {[%clk 0:02:56]}  a6 {[%clk 0:02:58]} 9. d4 {[%clk 0:02:56]}  b5 {[%clk 0:02:57]} 10. Bc2 {[%clk 0:02:56]}  cxd4 {[%clk 0:02:56]} 11. cxd4 {[%clk 0:02:56]}  Bb7 {[%clk 0:02:57]} 12. Nc3 {[%clk 0:02:56]}  Rc8 {[%clk 0:02:57]} 13. a3 {[%clk 0:02:52]}  e6 {[%clk 0:02:47]} 14. Bg5 {[%clk 0:02:47]}  h6 {[%clk 0:02:47]} 15. Bf4 {[%clk 0:02:45]}  Qe7 {[%clk 0:02:44]} 16. Qd2 {[%clk 0:02:44]}  Kh7 {[%clk 0:02:44]} 17. Rad1 {[%clk 0:02:42]}  Rfd8 {[%clk 0:02:44]} 18. h4 {[%clk 0:02:36]}  Nb6 {[%clk 0:02:41]} 19. Bd3 {[%clk 0:02:26]}  Nc4 {[%clk 0:02:40]} 20. Qe2 {[%clk 0:02:24]}  Nxa3 {[%clk 0:02:29]} 21. e5 {[%clk 0:02:24]}  dxe5 {[%clk 0:02:26]} 22. Nxe5 {[%clk 0:02:21]}  Nc4 {[%clk 0:02:21]} 23. h5 {[%clk 0:02:20]}  Nxe5 {[%clk 0:02:20]} 24. Bxe5 {[%clk 0:02:13]}  Ng8 {[%clk 0:02:11]} 25. hxg6+ {[%clk 0:02:11]}  fxg6 {[%clk 0:02:12]} 26. Bxg7 {[%clk 0:02:10]}  Kxg7 {[%clk 0:02:10]} 27. Qg4 {[%clk 0:02:00]}  Qg5 {[%clk 0:01:57]} 28. Qxg5 {[%clk 0:02:00]}  hxg5 {[%clk 0:01:58]} 29. Rxe6 {[%clk 0:02:01]}  Rc6 {[%clk 0:01:58]} 30. Rxc6 {[%clk 0:01:35]}  Bxc6 {[%clk 0:01:58]} 31. Be4 {[%clk 0:01:35]}  Bxe4 {[%clk 0:01:56]} 32. Nxe4 {[%clk 0:01:36]}  g4 {[%clk 0:01:50]} 33. Kh2 {[%clk 0:01:29]}  Nf6 {[%clk 0:01:50]} 34. Nc5 {[%clk 0:01:27]}  Rd6 {[%clk 0:01:46]} 35. Kg3 {[%clk 0:01:28]}  a5 {[%clk 0:01:43]} 36. Kf4 {[%clk 0:01:24]}  Nd7 {[%clk 0:01:39]} 37. Ne4 {[%clk 0:01:19]}  Rd5 {[%clk 0:01:31]} 38. Kxg4 {[%clk 0:01:17]}  Nf6+ {[%clk 0:01:27]} 39. Nxf6 {[%clk 0:01:17]}  Kxf6 {[%clk 0:01:28]} 40. Kf4 {[%clk 0:01:17]}  a4 {[%clk 0:01:25]} 41. Ke4 {[%clk 0:01:17]}  Rd8 {[%clk 0:01:26]} 42. d5 {[%clk 0:01:13]}  b4 {[%clk 0:01:22]} 43. Rd3 {[%clk 0:01:06]}  Ra8 {[%clk 0:01:19]} 44. d6 {[%clk 0:00:58]}  Ke6 {[%clk 0:01:14]} 45. d7 {[%clk 0:00:58]}  Ke7 {[%clk 0:01:13]} 46. Rd4 {[%clk 0:00:45]}  a3 {[%clk 0:01:11]} 47. d8=Q+ {[%clk 0:00:45]}  Rxd8 {[%clk 0:01:10]} 48. Rxb4 {[%clk 0:00:46]}  axb2 {[%clk 0:01:00]} 49. Rxb2 {[%clk 0:00:47]}  Kf6 {[%clk 0:01:00]} 50. Rb6+ {[%clk 0:00:46]}  Kg5 {[%clk 0:01:00]} 51. f4+ {[%clk 0:00:43]}  Kh5 {[%clk 0:01:00]} 52. g4+ {[%clk 0:00:34]}  Kxg4 {[%clk 0:00:57]} 53. Rxg6+ {[%clk 0:00:34]}  Kh5 {[%clk 0:00:58]} 54. f5 {[%clk 0:00:33]}  Ra8 {[%clk 0:00:56]} 55. Rd6 {[%clk 0:00:16]}  Ra4+ {[%clk 0:00:46]} 56. Ke5 {[%clk 0:00:16]}  Ra1 {[%clk 0:00:45]} 57. Kf6 {[%clk 0:00:15]}  Kh6 {[%clk 0:00:37]} 58. Ke7+ {[%clk 0:00:14]}  Kh7 {[%clk 0:00:37]} 59. f6 {[%clk 0:00:14]}  Ra7+ {[%clk 0:00:31]} 60. Rd7 {[%clk 0:00:12]}  Ra1 {[%clk 0:00:31]} 61. f7 {[%clk 0:00:11]}  Re1+ {[%clk 0:00:29]} 62. Kf8 {[%clk 0:00:12]}  Rf1 {[%clk 0:00:20]} 63. Rd2 {[%clk 0:00:10]}  Rf3 {[%clk 0:00:18]} 64. Rh2+ {[%clk 0:00:10]}  Kg6 {[%clk 0:00:19]} 65. Kg8 {[%clk 0:00:10]}  Rxf7 {[%clk 0:00:12]} 66. Rg2+ {[%clk 0:00:11]}  Kh6 {[%clk 0:00:13]} 67. Kxf7 {[%clk 0:00:11]}  Kh5 {[%clk 0:00:14]} 68. Kf6 {[%clk 0:00:11]}  Kh4 {[%clk 0:00:15]} 69. Rg5 {[%clk 0:00:11]}  Kh3 {[%clk 0:00:16]} 70. Kf5 {[%clk 0:00:12]}  Kh4 {[%clk 0:00:16]} 71. Kf4 {[%clk 0:00:13]}  Kh3 {[%clk 0:00:17]} 72. Rg4 {[%clk 0:00:13]}  Kh2 {[%clk 0:00:18]} 73. Rg3 {[%clk 0:00:14]}  Kh1 {[%clk 0:00:18]} 74. Kf3 {[%clk 0:00:15]}  Kh2 {[%clk 0:00:19]} 75. Kf2 {[%clk 0:00:15]}  Kh1 {[%clk 0:00:20]} 76. Rh3# {[%clk 0:00:16]} 1-0


[Site "https://www.chess.com"]

[Event "Titled Tuesday Blitz March 14 Late 2023"]
[White "Bove, Alessandro"]
[Black "Sokolin, Leonid"]
[WhiteFideId "814121"]
[BlackFideId "2009161"]
[WhiteElo "2387"]
[BlackElo "2394"]
[Result "1-0"]
[Round "04"]
[TimeControl "180+2"]
[Date "2023.03.14"]
[WhiteClock "0:00:23"]
[BlackClock "0:00:02"]

1. d4 {[%clk 0:03:00]}  Nf6 {[%clk 0:02:57]} 2. Nf3 {[%clk 0:03:01]}  e6 {[%clk 0:02:55]} 3. Bg5 {[%clk 0:03:01]}  h6 {[%clk 0:02:53]} 4. Bh4 {[%clk 0:03:00]}  c5 {[%clk 0:02:52]} 5. e3 {[%clk 0:03:00]}  Qb6 {[%clk 0:02:51]} 6. Qc1 {[%clk 0:02:57]}  Nc6 {[%clk 0:02:38]} 7. c3 {[%clk 0:02:57]}  Ne4 {[%clk 0:02:22]} 8. Bd3 {[%clk 0:02:53]}  d5 {[%clk 0:02:20]} 9. Nbd2 {[%clk 0:02:51]}  f5 {[%clk 0:02:20]} 10. O-O {[%clk 0:02:47]}  Bd6 {[%clk 0:02:20]} 11. dxc5 {[%clk 0:02:38]}  Nxc5 {[%clk 0:02:19]} 12. Bc2 {[%clk 0:02:35]}  O-O {[%clk 0:02:17]} 13. Nb3 {[%clk 0:02:35]}  Ne4 {[%clk 0:02:15]} 14. Bg3 {[%clk 0:02:29]}  Nxg3 {[%clk 0:01:59]} 15. hxg3 {[%clk 0:02:30]}  e5 {[%clk 0:01:59]} 16. Rd1 {[%clk 0:02:27]}  Ne7 {[%clk 0:01:58]} 17. Qd2 {[%clk 0:02:17]}  Rd8 {[%clk 0:01:57]} 18. Nh4 {[%clk 0:02:16]}  Be6 {[%clk 0:01:55]} 19. Rac1 {[%clk 0:02:10]}  a5 {[%clk 0:01:54]} 20. a4 {[%clk 0:02:06]}  d4 {[%clk 0:01:52]} 21. Na1 {[%clk 0:01:54]}  dxe3 {[%clk 0:01:52]} 22. Qxe3 {[%clk 0:01:49]}  Qxe3 {[%clk 0:01:50]} 23. fxe3 {[%clk 0:01:48]}  Bc5 {[%clk 0:01:45]} 24. Kf2 {[%clk 0:01:47]}  f4 {[%clk 0:01:40]} 25. gxf4 {[%clk 0:01:47]}  exf4 {[%clk 0:01:40]} 26. Rxd8+ {[%clk 0:01:41]}  Rxd8 {[%clk 0:01:40]} 27. Rd1 {[%clk 0:01:37]}  Bxe3+ {[%clk 0:01:34]} 28. Ke2 {[%clk 0:01:29]}  Bc4+ {[%clk 0:01:27]} 29. Bd3 {[%clk 0:01:28]}  Be6 {[%clk 0:00:58]} 30. Bh7+ {[%clk 0:01:19]}  Kxh7 {[%clk 0:00:55]} 31. Rxd8 {[%clk 0:01:20]}  Bc4+ {[%clk 0:00:53]} 32. Ke1 {[%clk 0:01:16]}  Nc6 {[%clk 0:00:41]} 33. Rc8 {[%clk 0:01:06]}  Ne5 {[%clk 0:00:39]} 34. b3 {[%clk 0:00:45]}  Bd5 {[%clk 0:00:34]} 35. c4 {[%clk 0:00:41]}  Bc6 {[%clk 0:00:33]} 36. Nc2 {[%clk 0:00:38]}  Bc5 {[%clk 0:00:33]} 37. Ke2 {[%clk 0:00:30]}  Be4 {[%clk 0:00:23]} 38. Ne1 {[%clk 0:00:28]}  b6 {[%clk 0:00:21]} 39. Re8 {[%clk 0:00:26]}  Bd4 {[%clk 0:00:19]} 40. Nhf3 {[%clk 0:00:26]}  Nxf3 {[%clk 0:00:15]} 41. Nxf3 {[%clk 0:00:24]}  Bxf3+ {[%clk 0:00:13]} 42. Kxf3 {[%clk 0:00:24]}  g5 {[%clk 0:00:12]} 43. Re6 {[%clk 0:00:23]}  Kg7 {[%clk 0:00:09]} 44. Ke4 {[%clk 0:00:23]}  Bc5 {[%clk 0:00:09]} 45. Kd5 {[%clk 0:00:24]}  h5 {[%clk 0:00:08]} 46. Ke5 {[%clk 0:00:23]}  Kf7 {[%clk 0:00:07]} 47. Rc6 {[%clk 0:00:23]}  Be3 {[%clk 0:00:05]} 48. Kf5 {[%clk 0:00:24]}  h4 {[%clk 0:00:02]} 49. Kg4 {[%clk 0:00:23]} 1-0


[Site "https://www.chess.com"]

[Event "Titled Tuesday Blitz March 14 Late 2023"]
[White "Kalajzic, Ivan"]
[Black "Postma, Dinant"]
[WhiteFideId "14506378"]
[BlackFideId "1018612"]
[WhiteElo "2203"]
[BlackElo "2511"]
[Result "0-1"]
[Round "04"]
[TimeControl "180+2"]
[Date "2023.03.14"]
[WhiteClock "0:00:16"]
[BlackClock "0:00:04"]

1. d4 {[%clk 0:02:59]}  Nf6 {[%clk 0:02:59]} 2. Nc3 {[%clk 0:02:59]}  e6 {[%clk 0:02:57]} 3. Bg5 {[%clk 0:02:59]}  d5 {[%clk 0:02:55]} 4. e4 {[%clk 0:02:59]}  dxe4 {[%clk 0:02:55]} 5. Nxe4 {[%clk 0:02:59]}  Be7 {[%clk 0:02:52]} 6. Bxf6 {[%clk 0:03:00]}  Bxf6 {[%clk 0:02:53]} 7. Nf3 {[%clk 0:02:59]}  Nc6 {[%clk 0:02:47]} 8. c3 {[%clk 0:02:57]}  Ne7 {[%clk 0:02:32]} 9. Bd3 {[%clk 0:02:56]}  Ng6 {[%clk 0:02:31]} 10. g3 {[%clk 0:02:53]}  Bd7 {[%clk 0:02:30]} 11. Qe2 {[%clk 0:02:51]}  Bc6 {[%clk 0:02:29]} 12. h4 {[%clk 0:02:50]}  Ne7 {[%clk 0:02:18]} 13. Nxf6+ {[%clk 0:02:48]}  gxf6 {[%clk 0:02:16]} 14. Be4 {[%clk 0:02:48]}  Qd6 {[%clk 0:02:07]} 15. Bxc6+ {[%clk 0:02:44]}  Qxc6 {[%clk 0:02:08]} 16. O-O-O {[%clk 0:02:43]}  O-O-O {[%clk 0:02:07]} 17. Rhe1 {[%clk 0:02:41]}  Nd5 {[%clk 0:01:57]} 18. Nd2 {[%clk 0:02:26]}  Rd7 {[%clk 0:01:39]} 19. Qc4 {[%clk 0:02:25]}  Qxc4 {[%clk 0:01:25]} 20. Nxc4 {[%clk 0:02:25]}  Rhd8 {[%clk 0:01:25]} 21. Rd2 {[%clk 0:02:14]}  Ne7 {[%clk 0:01:21]} 22. Red1 {[%clk 0:02:10]}  c6 {[%clk 0:01:15]} 23. Ne3 {[%clk 0:02:08]}  Nd5 {[%clk 0:01:12]} 24. Nxd5 {[%clk 0:02:08]}  cxd5 {[%clk 0:01:10]} 25. Rd3 {[%clk 0:02:03]}  Rc7 {[%clk 0:01:10]} 26. Kd2 {[%clk 0:02:01]}  Kd7 {[%clk 0:01:08]} 27. Rf3 {[%clk 0:01:57]}  Ke7 {[%clk 0:01:08]} 28. Rf4 {[%clk 0:01:53]}  Rg8 {[%clk 0:01:06]} 29. b3 {[%clk 0:01:44]}  b5 {[%clk 0:01:03]} 30. Kd3 {[%clk 0:01:41]}  f5 {[%clk 0:00:57]} 31. Rc1 {[%clk 0:01:39]}  Kd6 {[%clk 0:00:48]} 32. c4 {[%clk 0:01:23]}  bxc4+ {[%clk 0:00:46]} 33. bxc4 {[%clk 0:01:24]}  dxc4+ {[%clk 0:00:44]} 34. Rxc4 {[%clk 0:01:25]}  Rxc4 {[%clk 0:00:39]} 35. Kxc4 {[%clk 0:01:26]}  Rc8+ {[%clk 0:00:38]} 36. Kb5 {[%clk 0:01:16]}  Rc2 {[%clk 0:00:24]} 37. a4 {[%clk 0:01:10]}  Ra2 {[%clk 0:00:15]} 38. g4 {[%clk 0:01:07]}  fxg4 {[%clk 0:00:13]} 39. Rxf7 {[%clk 0:01:06]}  h5 {[%clk 0:00:11]} 40. Rxa7 {[%clk 0:00:59]}  Rxf2 {[%clk 0:00:11]} 41. Rg7 {[%clk 0:00:56]}  Rf4 {[%clk 0:00:10]} 42. a5 {[%clk 0:00:55]}  Rxd4 {[%clk 0:00:08]} 43. a6 {[%clk 0:00:55]}  Rd5+ {[%clk 0:00:07]} 44. Kb6 {[%clk 0:00:55]}  Rd1 {[%clk 0:00:08]} 45. Rg5 {[%clk 0:00:48]}  Rb1+ {[%clk 0:00:05]} 46. Ka5 {[%clk 0:00:43]}  Kc7 {[%clk 0:00:03]} 47. Rxh5 {[%clk 0:00:41]}  Ra1+ {[%clk 0:00:04]} 48. Kb5 {[%clk 0:00:41]}  Rb1+ {[%clk 0:00:04]} 49. Kc5 {[%clk 0:00:40]}  Ra1 {[%clk 0:00:04]} 50. Rh7+ {[%clk 0:00:38]}  Kb8 {[%clk 0:00:03]} 51. h5 {[%clk 0:00:33]}  Rxa6 {[%clk 0:00:02]} 52. h6 {[%clk 0:00:33]}  g3 {[%clk 0:00:02]} 53. Rg7 {[%clk 0:00:33]}  Ra5+ {[%clk 0:00:02]} 54. Kd6 {[%clk 0:00:32]}  Rh5 {[%clk 0:00:03]} 55. h7 {[%clk 0:00:32]}  g2 {[%clk 0:00:04]} 56. Rxg2 {[%clk 0:00:16]}  Rxh7 {[%clk 0:00:04]} 57. Kxe6 {[%clk 0:00:16]}  Rb7 {[%clk 0:00:05]} 58. Rg7 {[%clk 0:00:16]}  Rxg7 {[%clk 0:00:04]} 0-1


[Site "https://www.chess.com"]

[Event "Titled Tuesday Blitz March 14 Late 2023"]
[White "Karas, Marek"]
[Black "Jenkins, Drake"]
[WhiteFideId "14928558"]
[BlackFideId "2022397"]
[WhiteElo "2233"]
[BlackElo "2256"]
[Result "1-0"]
[Round "04"]
[TimeControl "180+2"]
[Date "2023.03.14"]
[WhiteClock "0:00:03"]
[BlackClock "0:00:04"]

1. Nf3 {[%clk 0:02:59]}  Nf6 {[%clk 0:02:59]} 2. g3 {[%clk 0:03:00]}  c5 {[%clk 0:02:59]} 3. Bg2 {[%clk 0:02:59]}  Nc6 {[%clk 0:02:59]} 4. O-O {[%clk 0:03:00]}  e5 {[%clk 0:03:00]} 5. d3 {[%clk 0:03:00]}  d5 {[%clk 0:03:00]} 6. c4 {[%clk 0:02:57]}  d4 {[%clk 0:02:59]} 7. b4 {[%clk 0:02:55]}  cxb4 {[%clk 0:02:56]} 8. a3 {[%clk 0:02:54]}  bxa3 {[%clk 0:02:52]} 9. Bxa3 {[%clk 0:02:55]}  Bxa3 {[%clk 0:02:51]} 10. Nxa3 {[%clk 0:02:56]}  O-O {[%clk 0:02:51]} 11. Qb3 {[%clk 0:02:51]}  Re8 {[%clk 0:02:49]} 12. Nd2 {[%clk 0:02:48]}  a5 {[%clk 0:02:28]} 13. Rfb1 {[%clk 0:02:44]}  Nb4 {[%clk 0:02:28]} 14. Nc2 {[%clk 0:02:40]}  Nxc2 {[%clk 0:02:23]} 15. Qxc2 {[%clk 0:02:34]}  Qc7 {[%clk 0:02:10]} 16. Rb5 {[%clk 0:02:28]}  Ra7 {[%clk 0:01:49]} 17. Qb2 {[%clk 0:02:22]}  Bg4 {[%clk 0:01:41]} 18. Kf1 {[%clk 0:02:10]}  Rb8 {[%clk 0:01:37]} 19. c5 {[%clk 0:01:42]}  Bd7 {[%clk 0:01:31]} 20. Rb6 {[%clk 0:01:40]}  Qxc5 {[%clk 0:01:12]} 21. Rc1 {[%clk 0:01:39]}  Qf8 {[%clk 0:01:11]} 22. Nc4 {[%clk 0:01:31]}  Qe7 {[%clk 0:00:54]} 23. Bxb7 {[%clk 0:01:12]}  Raxb7 {[%clk 0:00:44]} 24. Rxb7 {[%clk 0:01:05]}  Rxb7 {[%clk 0:00:44]} 25. Qd2 {[%clk 0:00:54]}  Bh3+ {[%clk 0:00:39]} 26. Kg1 {[%clk 0:00:54]}  h6 {[%clk 0:00:37]} 27. Qxa5 {[%clk 0:00:53]}  e4 {[%clk 0:00:28]} 28. Qa8+ {[%clk 0:00:44]}  Kh7 {[%clk 0:00:28]} 29. Qa5 {[%clk 0:00:30]}  exd3 {[%clk 0:00:25]} 30. exd3 {[%clk 0:00:31]}  Qe2 {[%clk 0:00:24]} 31. Ne5 {[%clk 0:00:24]}  Rb2 {[%clk 0:00:18]} 32. Qe1 {[%clk 0:00:18]}  Qxe1+ {[%clk 0:00:10]} 33. Rxe1 {[%clk 0:00:19]}  Be6 {[%clk 0:00:10]} 34. Nf3 {[%clk 0:00:15]}  Ng4 {[%clk 0:00:06]} 35. Nxd4 {[%clk 0:00:14]}  Nxf2 {[%clk 0:00:06]} 36. Nxe6 {[%clk 0:00:14]}  fxe6 {[%clk 0:00:06]} 37. Rxe6 {[%clk 0:00:12]}  Nxd3 {[%clk 0:00:06]} 38. Rd6 {[%clk 0:00:13]}  Ne5 {[%clk 0:00:06]} 39. h4 {[%clk 0:00:11]}  Nf3+ {[%clk 0:00:05]} 40. Kf1 {[%clk 0:00:11]}  Nd2+ {[%clk 0:00:02]} 41. Kg1 {[%clk 0:00:10]}  Ne4 {[%clk 0:00:03]} 42. Rd3 {[%clk 0:00:10]}  Nf6 {[%clk 0:00:03]} 43. Rf3 {[%clk 0:00:06]}  Rc2 {[%clk 0:00:04]} 44. Rd3 {[%clk 0:00:06]}  Ne4 {[%clk 0:00:04]} 45. Re3 {[%clk 0:00:05]}  Nf6 {[%clk 0:00:04]} 46. Rf3 {[%clk 0:00:05]}  h5 {[%clk 0:00:05]} 47. Kf1 {[%clk 0:00:05]}  Kg6 {[%clk 0:00:05]} 48. Ra3 {[%clk 0:00:05]}  Ng4 {[%clk 0:00:04]} 49. Ra5 {[%clk 0:00:04]}  Rd2 {[%clk 0:00:04]} 50. Rg5+ {[%clk 0:00:04]}  Kh6 {[%clk 0:00:03]} 51. Rb5 {[%clk 0:00:04]}  Rd6 {[%clk 0:00:03]} 52. Kg2 {[%clk 0:00:04]}  Rg6 {[%clk 0:00:04]} 53. Rc5 {[%clk 0:00:04]}  Nf6 {[%clk 0:00:04]} 54. Rc8 {[%clk 0:00:03]}  Ne4 {[%clk 0:00:04]} 55. Rh8# {[%clk 0:00:03]} 1-0


[Site "https://www.chess.com"]